fUSD/lending_fUSD_20240521
["ID","MTS","AMOUNT","RATE_DAILY","PERIOD"]
[327680333,1716311433494,-153.15,0.00031534,2]
[327680334,1716311433503,-153.15,0.00031534,2]
[327680335,1716311433513,-603.26246696,0.00031542,4]
[327680336,1716311433523,-525.90822352,0.00031542,4]
[327680337,1716311433532,-524.50918938,0.00031542,4]
[327680338,1716311433543,-1790.00464579,0.00031542,4]
[327680339,1716311433552,-5647.75673243,0.00031542,4]
[327680340,1716311433563,-157.5591942,0.00031542,4]
[327680341,1716311433572,-155.61651065,0.00031542,4]
[327680342,1716311433584,-460.637529,0.00031542,4]
[327680343,1716311433593,-621.99746297,0.00031542,4]
[327680344,1716311433602,-789.25442499,0.00031542,4]
[327680345,1716311433611,-209.95647287,0.00031542,4]
[327680346,1716311433621,-7028.62927079,0.00031542,2]
[327680347,1716311433630,-321.75766818,0.00031543,4]
[327680348,1716311433640,-11088.2661783,0.00031543,4]
[327680349,1716311433649,-1579.14873293,0.00031544,3]
[327680350,1716311433658,-76297.04566562,0.00031544,5]
[327680351,1716311433671,-2305.56210131,0.00031544,5]
[327680352,1716311434026,-25808.20202122,0.00031544,5]
[327680353,1716311434037,-25765.93604972,0.00031544,5]
[327680354,1716311434087,-9560.98838455,0.00031544,5]
[327680355,1716311434098,-734.6075021,0.00031544,5]
[327680356,1716311434111,-15054.4667413,0.00031544,5]
[327680357,1716311434146,-10137.88226977,0.00031544,5]
[327680358,1716311434162,-888.50890406,0.00031544,5]
[327680359,1716311434173,-3317.77780899,0.00031544,5]
[327680360,1716311434185,-696.9,0.00031544,5]
[327680395,1716311438730,-330.55871346,0.00031544,2]
[327680396,1716311438739,-2317.72728654,0.00031544,5]
[327680397,1716311438750,-7034.01638734,0.00031544,5]
[327680398,1716311438773,-0.00136231,0.00031544,5]
[327680399,1716311438784,-4987.4730074,0.00031544,5]
[327680401,1716311438954,-751.676,0.00031544,5]
[327680404,1716311438986,-701.09972105,0.00031544,5]
[327680405,1716311438998,-69835.94333207,0.00031544,5]
[327680406,1716311439019,-4287.77934432,0.00031544,5]
[327680407,1716311439031,-76958.43151241,0.00031544,5]
[327680410,1716311443274,-562.44851433,0.00031544,5]
[327680416,1716311443297,-94.91074321,0.00031544,5]
[327680418,1716311443308,-500.0,0.00031544,5]
[327680420,1716311443319,-1094.71111764,0.00031544,5]
[327680422,1716311443332,-643.8876151,0.00031544,5]
[327680427,1716311443474,-7555.01799996,0.00031544,5]
[327680430,1716311443485,-262.79677064,0.00031544,5]
[327680432,1716311443496,-4567.28728259,0.00031544,5]
[327680453,1716311443681,-13231.40763324,0.00031544,5]
[327680457,1716311443692,-1951.96144243,0.00031544,5]
[327680459,1716311443703,-1664.916703,0.00031544,5]
[327680464,1716311443744,-565.99570335,0.00031544,5]
[327680466,1716311443755,-9124.63048914,0.00031544,5]
[327680469,1716311443767,-30921.59881803,0.00031544,5]
[327680471,1716311443777,-263.5711817,0.00031544,5]
[327680472,1716311443789,-507.53028692,0.00031544,5]
[327680473,1716311443801,-2659.37169153,0.00031544,5]
[327680474,1716311443922,-919.00149303,0.00031544,5]
[327680475,1716311443936,-32181.91231744,0.00031544,5]
[327680476,1716311443949,-17369.99190798,0.00031544,5]
[327680534,1716311446556,-331.7991987,0.00031534,3]
[327680535,1716311446568,-331.9608013,0.00031534,3]
[327680536,1716311446578,-328.38605855,0.00031543,4]
[327680537,1716311446597,-2.75181514,0.00031543,4]
[327680538,1716311446609,-895.73293621,0.00031543,4]
[327680539,1716311446621,-4375.2253396,0.00031543,4]
[327680540,1716311446630,-685.57129057,0.00031543,4]
[327680541,1716311446641,-1430.78897317,0.00031543,4]
[327680542,1716311446651,-9882.21102683,0.00031544,5]
[327680543,1716311446662,-3251.74170898,0.00031544,5]
[327680544,1716311446872,-2e-08,0.00031544,5]
[327680545,1716311447016,-1400.87616,0.00031544,5]
[327680546,1716311447028,-699.45346921,0.00031544,5]
[327680547,1716311447039,-2874.13903805,0.00031544,5]
[327680548,1716311447052,-696.13304399,0.00031544,5]
[327680549,1716311447063,-133299.32513278,0.00031544,5]
[327680550,1716311447075,-6750.4696265,0.00031544,5]
[327680551,1716311447091,-636.2039695,0.00031544,5]
[327680552,1716311447103,-429.34971866,0.00031544,5]
[327680553,1716311447114,-348.57278571,0.00031544,5]
[327680554,1716311447152,-7402.70496607,0.00031544,5]
[327680555,1716311447187,-151.9680134,0.00031544,5]
[327680557,1716311469051,2604.3520118,0.00012,2]
[327680566,1716311517764,-4000.0,0.00012003,2]
[327680567,1716311520338,-883.61486605,0.00012002,2]
[327680568,1716311520361,-3116.38513395,0.00012003,2]
[327680569,1716311520496,-262.00929595,0.00012003,2]
[327680570,1716311521924,514.0,0.00012002,2]
[327680571,1716311546856,3223.99070405,0.00012002,2]
[327680572,1716311546886,2239.79266507,0.00012002,2]
[327680574,1716311561166,1360.30965247,0.00012002,2]
[327680575,1716311571342,292.37690303,0.00012002,2]
[327680576,1716311579836,107.52077943,0.00012002,2]
[327680577,1716311579859,4000.0,0.00012002,2]
[327680578,1716311579881,3411.95434252,0.00012002,2]
[327680579,1716311584434,588.04565748,0.00011903,2]
[327680580,1716311584460,4000.0,0.00011903,2]
[327680581,1716311584482,4000.0,0.00011903,2]
[327680582,1716311584509,4000.0,0.00011903,2]
[327680583,1716311584539,3526.60674252,0.00011903,2]
[327680584,1716311587289,292.33058439,0.00012002,2]
[327680586,1716311599691,181.06267309,0.00012002,2]
[327680590,1716311620290,-4000.0,0.00012002,2]
[327680591,1716311620904,-2968.48427378,0.00012002,2]
[327680592,1716311620927,-1031.51572622,0.00012002,2]
[327680593,1716311621755,-4000.0,0.00012002,2]
[327680594,1716311622447,-4000.0,0.00012002,2]
[327680595,1716311622988,-4000.0,0.00012002,2]
[327680596,1716311623443,-713.73744681,0.00012002,2]
[327680597,1716311623467,-3286.26255319,0.00012002,2]
[327680598,1716311623886,-4000.0,0.00012002,2]
[327680599,1716311624329,-360.06212112,0.00012002,2]
[327680600,1716311624350,-945.54619917,0.00012002,2]
[327680601,1716311637689,368.32619194,0.00012002,2]
[327680602,1716311648835,346.35362983,0.00012002,2]
[327680603,1716311661188,1979.71185794,0.00012002,2]
[327680604,1716311661233,4000.0,0.00012002,2]
[327680605,1716311735760,-25729.14706863,0.00012002,2]
[327680606,1716311735784,-188.19549279,0.00012002,2]
[327680607,1716311735810,-862.70753615,0.00012002,2]
[327680608,1716311735850,1319.94990243,0.00011941,2]
[327680609,1716311735873,3631.21454457,0.00011941,2]
[327680615,1716311814794,188.19549279,0.00011941,2]
[327680616,1716311820575,862.70753615,0.00011941,2]
[327680618,1716311834902,3787.23880145,0.00011941,2]
[327680619,1716311836754,196.32,0.00028856,120]
[327680651,1716312555168,-290.46685954,0.00012001,2]
[327680652,1716312555189,-1805.53099,0.00012002,2]
[327680653,1716312555212,-281.88330445,0.00013769,2]
[327680654,1716312555234,-168.59168289,0.0001377,2]
[327680655,1716312555256,-154.59625969,0.00013872,2]
[327680656,1716312555278,-156.34,0.00013973,2]
[327680657,1716312555300,-158.18,0.00013973,2]
[327680658,1716312555322,-34.35953048,0.00013973,2]
[327680659,1716312562204,-123.89046952,0.00013973,2]
[327680660,1716312562226,-746.82543198,0.00016915,2]
[327680661,1716312573101,-119.25016241,0.00016915,2]
[327680662,1716312573123,-380.73983778,0.00017002,2]
[327680671,1716312633218,-348.795,0.00016902,2]
[327680672,1716312633230,-2407.76999996,0.00016902,2]
[327680673,1716312633246,-6974.0671,0.00016902,2]
[327680674,1716312633258,-109.31310004,0.00016902,2]
[327680675,1716312633268,-1319.949902,0.00016916,2]
[327680676,1716312633278,-1424.79116222,0.00017002,2]
[327680677,1716312633292,-150.0,0.00017704,2]
[327680678,1716312633302,-43315.61540487,0.00017704,2]
[327680679,1716312633312,-19498.47414158,0.00017705,2]
[327680680,1716312633321,-168.59168289,0.00017706,2]
[327680681,1716312633331,-150.99,0.00017806,2]
[327680682,1716312633340,-499.99,0.00017806,2]
[327680683,1716312633349,-167.45,0.00018277,2]
[327680684,1716312633359,-7934.83460626,0.00018604,2]
[327680685,1716312633395,-4827.33709374,0.00018604,2]
[327680686,1716312633405,-842.06,0.000189,2]
[327680687,1716312633415,-3156.21932445,0.00019,2]
[327680688,1716312633426,-272.99551561,0.00019,2]
[327680689,1716312633438,-3485.73225,0.00019,2]
[327680690,1716312633695,-3379.8854126,0.00019,2]
[327680691,1716312633704,-154.59625969,0.00019215,2]
[327680692,1716312633714,-150.0,0.00019474,2]
[327680693,1716312633724,-99.3956095,0.00021421,2]
[327680694,1716312633735,-218.6843905,0.00021421,2]
[327680695,1716312633745,-170.25,0.00021918,2]
[327680696,1716312633755,-1003.9456095,0.00022002,2]
[327680701,1716312637745,-801.5853905,0.00022002,2]
[327680704,1716312637757,-1139.65,0.00022944,2]
[327680707,1716312637767,-1054.27,0.00023036,2]
[327680710,1716312637777,-152.58,0.00023182,2]
[327680713,1716312637789,-1000.0,0.00023275,2]
[327680715,1716312637800,-11638.1646095,0.00023316,2]
[327680718,1716312637813,-2056.8853905,0.00023316,2]
[327680719,1716312637823,-1349.96,0.00023404,2]
[327680720,1716312637834,-318.08,0.00023685,2]
[327680721,1716312637844,-250.0,0.00023963,2]
[327680722,1716312637854,-2435.99,0.00024124,2]
[327680723,1716312637863,-250.0,0.00024445,2]
[327680724,1716312637874,-150.0,0.00024445,2]
[327680725,1716312637885,-154.59625969,0.00024557,2]
[327680726,1716312637895,-250.0,0.00024658,2]
[327680727,1716312637905,-1256.51378748,0.00024875,2]
[327680728,1716312637918,-715.50289845,0.00024875,2]
[327680729,1716312637930,-379.07726454,0.00024875,2]
[327680730,1716312638081,-7648.89604953,0.00024875,2]
[327680731,1716312638092,-163.0,0.00024875,2]
[327680732,1716312638102,-177.68,0.00025062,2]
[327680733,1716312638113,-18461.83,0.00025401,2]
[327680734,1716312638123,-1054.27,0.00025776,2]
[327680735,1716312638132,-318.08,0.00025949,2]
[327680736,1716312638142,-922.0,0.00025966,2]
[327680737,1716312638152,-1000.0,0.00026184,2]
[327680738,1716312638162,-1805.53099,0.00027002,2]
[327680739,1716312638172,-318.08,0.00028213,2]
[327680740,1716312638182,-1054.27,0.00028516,2]
[327680741,1716312638192,-1000.0,0.00029094,2]
[327680742,1716312638201,-922.0,0.00029211,2]
[327680743,1716312638211,-364.00332703,0.00029252,2]
[327680744,1716312638221,-290.46685954,0.00029799,2]
[327680745,1716312638231,-181.62175732,0.000298,2]
[327680746,1716312638241,-1009.6440232,0.000298,2]
[327680747,1716312638252,-19320.59607513,0.000299,7]
[327680748,1716312638264,-643.55902057,0.000299,7]
[327680749,1716312638276,-6982.6374,0.000299,7]
[327680750,1716312638291,-2912.5032748,0.000299,7]
[327680840,1716312639873,-500.0,0.00017259,2]
[327680843,1716312640176,-309.12639055,0.00017259,2]
[327680844,1716312640189,-1520.15798083,0.00017259,2]
[327680845,1716312640199,-350.68762665,0.000299,7]
[327680846,1716312640210,-154.59625969,0.000299,2]
[327680847,1716312640220,-150.67,0.00029989,2]
[327680848,1716312640231,-153.15,0.00029989,2]
[327680849,1716312640241,-289.63033737,0.00029997,2]
[327680850,1716312640252,-939.58666517,0.00029998,2]
[327680851,1716312640263,-188.09933033,0.00029999,2]
[327680852,1716312640275,-374.0,0.00029999,2]
[327680853,1716312640290,-767.06686388,0.00029999,2]
[327680854,1716312640369,-6970.585,0.00029999,2]
[327680855,1716312640588,-1242.08852631,0.00029999,2]
[327680856,1716312640601,-3362.0,0.00029999,2]
[327680857,1716312640613,-854.9999999,0.00029999,2]
[327680862,1716312642794,-6325.056,0.00029999,2]
[327680865,1716312642806,-2534.02923427,0.00029999,2]
[327680883,1716312643145,-18766.53651789,0.00029999,2]
[327680884,1716312643157,-427.84158164,0.00029999,2]
[327680885,1716312643168,-348.92646,0.00029999,2]
[327680886,1716312643180,-8456.60988793,0.00029999,2]
[327680887,1716312643192,-253.10999997,0.00029999,2]
[327680888,1716312643269,-11061.07643873,0.00029999,2]
[327680889,1716312643281,-3096.48244863,0.00029999,2]
[327680890,1716312643294,-13023.00183033,0.00029999,2]
[327680891,1716312643306,-5003.22020882,0.00029999,2]
[327680892,1716312643317,-278.948,0.00029999,2]
[327680893,1716312643359,-806.1100004,0.00029999,2]
[327680894,1716312643371,-686.000002,0.00029999,2]
[327680895,1716312643383,-58091.95610256,0.00029999,2]
[327680896,1716312643394,-23356.86671108,0.00029999,2]
[327680897,1716312643405,-40612.16316,0.00029999,2]
[327680898,1716312643416,-119844.2712711,0.00029999,2]
[327680899,1716312643428,-17077.54797416,0.00029999,2]
[327680900,1716312643531,-1534.55028143,0.00029999,2]
[327680907,1716312643601,-2639.68505268,0.00029999,2]
[327680910,1716312643613,-814.22625206,0.00029999,2]
[327680918,1716312645817,-172820.62698081,0.00029999,2]
[327680919,1716312645829,-670.66970219,0.00029999,2]
[327680920,1716312646080,-693.40384,0.00029999,2]
[327680921,1716312646092,-1578.36830522,0.00029999,2]
[327680922,1716312646121,-1015.4466421,0.00029999,2]
[327680923,1716312646133,-32592.01435,0.00029999,2]
[327680936,1716312871877,10469.64371101,6.94e-05,2]
[327680937,1716312879976,170.55,0.00027958,120]
[327680941,1716312938478,265.91482533,0.00015,14]
[327680947,1716313134333,-155.0,0.0001299,2]
[327680948,1716313134357,-378.14770212,0.0001299,2]
[327680949,1716313134381,-155.0,0.0001299,2]
[327680950,1716313134404,-686.40083079,0.00012991,2]
[327680951,1716313134427,-324.93838667,0.00012992,2]
[327680952,1716313134450,-2300.51308042,0.00012992,2]
[327680953,1716313134911,-2443.73679719,0.00012992,2]
[327680954,1716313134934,-281.88330445,0.00012993,2]
[327680955,1716313134956,-1274.37989836,0.00012993,2]
[327680956,1716313135353,-1816.292509,0.00012993,2]
[327680957,1716313135375,-200.98269384,0.00012994,2]
[327680958,1716313135397,-290.46685954,0.00012994,2]
[327680959,1716313135419,-1381.21503003,0.00012999,2]
[327680960,1716313135443,-311.04290759,0.00013,2]
[327680961,1716313135762,-4000.0,0.00013,2]
[327680962,1716313136179,-4000.0,0.00013,2]
[327680963,1716313136751,-4000.0,0.00013,2]
[327680964,1716313137702,-4000.0,0.00013,2]
[327680965,1716313139649,-4000.0,0.00013,2]
[327680966,1716313141459,-4000.0,0.00013,2]
[327680967,1716313141964,-4000.0,0.00013,2]
[327680968,1716313149814,-300.0,0.00012999,2]
[327680969,1716313149837,-150.0,0.00012999,2]
[327680970,1716313149860,-150.0,0.00012999,2]
[327680971,1716313149883,-1272.9883811,0.00012999,2]
[327680972,1716313149906,-1127.0116189,0.00013,2]
[327680973,1716313157016,-440.0,0.00013,2]
[327680974,1716313165939,-4000.0,0.00013,2]
[327680975,1716313166566,-4000.0,0.00013,2]
[327680976,1716313167256,-4000.0,0.00013,2]
[327680977,1716313167913,-4000.0,0.00013,2]
[327680978,1716313175523,-4000.0,0.00013,2]
[327680981,1716313330579,-600.0,0.00012997,2]
[327680984,1716313754156,-1257.05831222,0.00012989,2]
[327680985,1716313755115,-15.93006888,0.00012989,2]
[327680986,1716313755139,-300.0,0.00012989,2]
[327680987,1716313755161,-30128.56897838,0.0001299,2]
[327680988,1716313755183,-155.0,0.00012997,2]
[327680989,1716313755207,-27312.437155,0.00012999,2]
[327680990,1716313755230,-2542.81879459,0.00013,2]
[327680991,1716313755253,-31556.97758344,0.00013,2]
[327680992,1716313760110,-67617.62948002,0.00013,2]
[327680993,1716313761101,-26383.37043762,0.00013,2]
[327680994,1716313761121,-105.65626645,0.00013973,2]
[327680995,1716313761153,-50.68373355,0.00013973,2]
[327680996,1716313761177,-156.17,0.00013973,2]
[327680997,1716313761198,-150.0,0.00014219,2]
[327680998,1716313761219,-420.0,0.00014245,2]
[327680999,1716313761240,-283.36,0.00015547,2]
[327681000,1716313761262,-499.99,0.00015622,2]
[327681001,1716313761284,-579.0,0.00015622,2]
[327681002,1716313761304,-150.99,0.00015622,2]
[327681003,1716313761324,-150.99,0.00015622,2]
[327681004,1716313761346,-299.99,0.00016882,4]
[327681005,1716313761366,-266.37775055,0.00016885,2]
[327681006,1716313761387,-216.31,0.00016887,2]
[327681007,1716313761408,-1967.79998517,0.00017001,2]
[327681008,1716313761429,-552.43,0.0001726,2]
[327681009,1716313761450,-500.0,0.00017351,2]
[327681010,1716313761470,-2055.8,0.0001741,2]
[327681011,1716313761492,-283.36,0.0001781,2]
[327681012,1716313761523,-156.5,0.00017907,2]
[327681013,1716313761545,-96.75132026,0.00017922,2]
[327681014,1716313774112,-870.05657279,0.00012347,2]
[327681022,1716313831988,-281.88330445,0.00012344,2]
[327681024,1716313831997,-18.10669555,0.00012345,2]
[327681052,1716313832520,-2.70168215,0.00012345,2]
[327681053,1716313832532,-513.91746424,0.00012345,2]
[327681054,1716313832541,-516.30358521,0.00012345,2]
[327681055,1716313832551,-643.52892318,0.00012345,2]
[327681056,1716313832560,-155.26393122,0.00012347,2]
[327681057,1716313832570,-85.51027584,0.00012347,2]
[327681058,1716313832579,-5275.29475044,0.00017257,2]
[327681059,1716313832588,-2186.8060043,0.00017258,2]
[327681060,1716313832598,-656.33285692,0.00017259,2]
[327681061,1716313832607,-155.0,0.00017259,2]
[327681062,1716313832617,-529.29437396,0.00017259,2]
[327681063,1716313832627,-227.07,0.00017459,2]
[327681064,1716313832636,-1716.28,0.00017741,2]
[327681065,1716313832645,-23763.24867974,0.00017922,2]
[327681066,1716313832655,-156.5,0.00017956,2]
[327681067,1716313832664,-156.5,0.00018005,2]
[327681068,1716313832674,-1280.12,0.00018028,2]
[327681069,1716313832684,-156.5,0.00018054,2]
[327681070,1716313832693,-156.5,0.00018103,2]
[327681071,1716313832701,-156.5,0.00018153,2]
[327681072,1716313832711,-156.5,0.00018202,2]
[327681073,1716313832719,-156.5,0.00018251,2]
[327681074,1716313832728,-156.5,0.000183,2]
[327681075,1716313832738,-400.0,0.00018326,2]
[327681076,1716313832747,-156.5,0.00018349,2]
[327681077,1716313832756,-156.5,0.00018398,2]
[327681078,1716313832765,-156.5,0.00018447,2]
[327681079,1716313832774,-156.5,0.00018496,2]
[327681080,1716313832783,-156.5,0.00018546,2]
[327681081,1716313832792,-832.4,0.00018558,2]
[327681082,1716313832801,-379.46,0.00018558,2]
[327681083,1716313832810,-156.5,0.00018595,2]
[327681084,1716313832820,-156.5,0.00018644,2]
[327681085,1716313832830,-156.5,0.00018693,2]
[327681086,1716313832839,-156.5,0.00018742,2]
[327681087,1716313832849,-156.5,0.00018791,2]
[327681088,1716313832859,-200.0,0.00018811,2]
[327681089,1716313832868,-156.5,0.0001884,2]
[327681090,1716313832878,-250.0,0.00019807,2]
[327681091,1716313832888,-3529.26049865,0.00019898,2]
[327681092,1716313832898,-200.83797714,0.00019898,2]
[327681093,1716313832907,-324.32661493,0.00019898,2]
[327681094,1716313832916,-686.12362517,0.00019898,2]
[327681095,1716313832926,-155.0,0.00019898,2]
[327681096,1716313832935,-377.17482588,0.00019898,2]
[327681097,1716313832944,-155.0,0.00019898,2]
[327681098,1716313832954,-1002.87923832,0.00019898,2]
[327681099,1716313832969,-266.26956998,0.00019898,2]
[327681100,1716313832978,-364.57392248,0.00019899,2]
[327681101,1716313832987,-76137.51716266,0.00019899,2]
[327681102,1716313832996,-31332.29364324,0.000199,3]
[327681103,1716313833009,-6711.07824719,0.000199,3]
[327681104,1716313833020,-10141.97630322,0.000199,3]
[327681105,1716313833032,-9560.98838455,0.000199,3]
[327681106,1716313833045,-2253.71037969,0.000199,3]
[327681107,1716313833056,-4800.5753998,0.000199,3]
[327681108,1716313837950,-2981.42276011,0.000199,3]
[327681131,1716313838207,-5087.408508,0.000199,3]
[327681132,1716313838218,-571.8024,0.000199,3]
[327681133,1716313838229,-2427.2,0.000199,3]
[327681134,1716313838240,-363.3164253,0.000199,3]
[327681135,1716313838251,-1012.81248906,0.000199,3]
[327681216,1716313840277,-340.0090999,0.000199,3]
[327681217,1716313840288,-953.445,0.000199,3]
[327681218,1716313840300,-2016.31282844,0.000199,3]
[327681219,1716313840311,-13662.30553182,0.000199,3]
[327681220,1716313840323,-9085.54445469,0.000199,3]
[327681221,1716313840335,-16132.93583412,0.000199,3]
[327681222,1716313840344,-408.0,0.0002,2]
[327681223,1716313840354,-155.13197663,0.0002,2]
[327681224,1716313840364,-283.0,0.0002,2]
[327681225,1716313840373,-301.3595747,0.0002,2]
[327681226,1716313840382,-283.36,0.00020074,2]
[327681227,1716313840392,-400.0,0.00020617,2]
[327681228,1716313840401,-379.46,0.00021297,2]
[327681229,1716313840410,-293.0,0.00021393,2]
[327681230,1716313840420,-283.36,0.00022338,2]
[327681231,1716313840430,-400.0,0.00022907,2]
[327681232,1716313840440,-379.46,0.00024037,2]
[327681233,1716313840450,-283.36,0.00024602,2]
[327681234,1716313840459,-250.0,0.00024658,2]
[327681235,1716313840469,-2099.86163565,0.00024889,2]
[327681236,1716313840478,-883.7537739,0.00024889,2]
[327681237,1716313840490,-1216.10786168,0.00024889,2]
[327681238,1716313840500,-1714.21714932,0.00024889,2]
[327681239,1716313840604,-385.64448626,0.00024889,2]
[327681240,1716313840614,-997.91186522,0.00024898,2]
[327681241,1716313840624,-997.91186518,0.00024898,2]
[327681242,1716313840634,-307.9088109,0.00024898,2]
[327681243,1716313840646,-690.00305428,0.00024898,2]
[327681244,1716313840656,-997.91186518,0.00024898,2]
[327681245,1716313840665,-997.91186518,0.00024898,2]
[327681246,1716313840675,-997.91186518,0.00024898,2]
[327681247,1716313840684,-400.0,0.00025198,2]
[327681248,1716313840694,-334.59478024,0.00025451,2]
[327681249,1716313840705,-380.65521976,0.00025451,2]
[327681250,1716313840715,-250.0,0.00025866,2]
[327681251,1716313840724,-765.38931665,0.00026227,2]
[327681252,1716313840735,-232.52254853,0.00026227,2]
[327681253,1716313840745,-283.36,0.00026866,2]
[327681254,1716313840754,-79.16015494,0.0002739,2]
[327681255,1716313840766,-359.38098,0.0002739,2]
[327681259,1716313843133,-365.89438495,0.0002739,2]
[327681260,1716313843144,-400.0,0.00027489,2]
[327681261,1716313843155,-164.29,0.00027549,2]
[327681262,1716313843165,-501.45905039,0.00028286,2]
[327681263,1716313843178,-496.45281479,0.00028286,2]
[327681264,1716313843188,-423.50395095,0.00028388,2]
[327681265,1716313843198,-715.25,0.00028632,2]
[327681266,1716313843208,-112.36823426,0.00028684,2]
[327681267,1716313843417,-40.65176574,0.00028684,2]
[327681268,1716313843429,-210.75557856,0.00028789,2]
[327681269,1716313843439,-1634.84365844,0.00029,2]
[327681270,1716313843449,-283.36,0.0002913,2]
[327681271,1716313843461,-1564.91862066,0.00029847,2]
[327681272,1716313843471,-162.57544654,0.000299,10]
[327681273,1716313843481,-155.11049814,0.000299,2]
[327681274,1716313843491,-173.46603552,0.000299,2]
[327681275,1716313843504,-155.96100922,0.000299,2]
[327681276,1716313843514,-158.46539353,0.000299,2]
[327681277,1716313843524,-212.76119854,0.00029969,2]
[327681278,1716313843535,-2570.85692145,0.00029998,2]
[327681279,1716313843548,-543.30758189,0.00029998,2]
[327681280,1716313843558,-601.84366,0.00029999,2]
[327681281,1716313843569,-2898.08568702,0.0003,5]
[327681282,1716313843581,-1889.08592415,0.0003,5]
[327681283,1716313844292,-2099.86163558,0.00024889,2]
[327681284,1716313844303,-60003.14564083,0.0003,5]
[327681285,1716313844313,-154.22434041,0.0003021,2]
[327681286,1716313844323,-173.36185652,0.0003031,2]
[327681287,1716313844335,-997.91186518,0.00030345,2]
[327681288,1716313844344,-515.82200569,0.00030399,4]
[327681289,1716313844354,-402416.42292979,0.000304,7]
[327681290,1716313844364,-150.67,0.000304,2]
[327681291,1716313844373,-446.46734959,0.0003041,6]
[327681292,1716313844383,-155.45745869,0.0003041,6]
[327681293,1716313844392,-500.0,0.0003041,6]
[327681294,1716313844402,-500.0,0.0003041,6]
[327681295,1716313844412,-503.69,0.0003041,6]
[327681296,1716313844421,-580.57,0.0003041,6]
[327681297,1716313844431,-678.79,0.0003041,6]
[327681298,1716313844441,-1048.52,0.0003041,6]
[327681299,1716313844451,-500.0,0.0003041,6]
[327681300,1716313844461,-637.75,0.0003041,6]
[327681301,1716313844471,-500.0,0.0003041,6]
[327681302,1716313844480,-933.31,0.0003041,6]
[327681303,1716313844490,-500.0,0.0003041,6]
[327681304,1716313844501,-500.0,0.0003041,6]
[327681305,1716313844511,-512.08,0.0003041,6]
[327681306,1716313844522,-500.0,0.0003041,6]
[327681307,1716313844532,-500.0,0.0003041,6]
[327681308,1716313844541,-500.0,0.0003041,6]
[327681309,1716313844551,-500.0,0.0003041,6]
[327681310,1716313844560,-500.0,0.0003041,6]
[327681313,1716313844574,-500.0,0.0003041,6]
[327681317,1716313844588,-500.0,0.0003041,6]
[327681320,1716313844599,-500.0,0.0003041,6]
[327681322,1716313844609,-599.38,0.0003041,6]
[327681324,1716313844619,-500.0,0.0003041,6]
[327681326,1716313844629,-788.09,0.0003041,6]
[327681328,1716313844638,-504.79,0.0003041,6]
[327681331,1716313844648,-620.36,0.0003041,6]
[327681333,1716313844658,-500.0,0.0003041,6]
[327681335,1716313844668,-500.0,0.0003041,6]
[327681337,1716313844678,-598.13,0.0003041,6]
[327681339,1716313844687,-500.0,0.0003041,6]
[327681341,1716313844698,-500.0,0.0003041,6]
[327681343,1716313844707,-500.0,0.0003041,6]
[327681345,1716313844717,-500.0,0.0003041,6]
[327681347,1716313844727,-500.0,0.0003041,6]
[327681349,1716313844737,-528.82150922,0.0003041,6]
[327681351,1716313844747,-500.0,0.0003041,6]
[327681353,1716313844757,-603.17,0.0003041,6]
[327681355,1716313844766,-500.0,0.0003041,6]
[327681357,1716313844776,-500.0,0.0003041,6]
[327681359,1716313844787,-500.0,0.0003041,6]
[327681361,1716313844796,-500.0,0.0003041,6]
[327681363,1716313844806,-155.4078075,0.0003041,6]
[327681365,1716313844816,-500.0,0.0003041,6]
[327681367,1716313844825,-607.58,0.0003041,6]
[327681369,1716313844838,-500.0,0.0003041,6]
[327681371,1716313844848,-558.83,0.0003041,6]
[327681373,1716313844858,-151.0,0.0003041,7]
[327681375,1716313844868,-618.65,0.0003041,6]
[327681377,1716313844878,-500.0,0.0003041,6]
[327681379,1716313844888,-517.29,0.0003041,6]